bitfinex-derivatives/quotes_ETHF0:USTF0_20250831
["timestamp","ask_amount","ask_price","bid_price","bid_amount"]
[1756611253969,0.1981,4456.4,4456.3,3.2078]
[1756611254163,0.486,4456.4,4456.3,3.4348]
[1756611255267,0.486,4456.4,4456.3,0.227]
[1756611260478,0.486,4456.4,4455.6,3.4925]
[1756611260685,0.486,4455.7,4455.6,3.6785]
[1756611260979,0.486,4455.7,4455.6,3.9055]
[1756611261481,0.486,4455.7,4455.6,3.6785]
[1756611261875,0.486,4455.7,4455.6,3.9055]
[1756611262179,0.486,4455.7,4455.6,3.6785]
[1756611262385,0.486,4455.7,4455.6,3.9055]
[1756611263884,0.486,4455.7,4455.6,3.3938]
[1756611264088,0.486,4455.7,4455.6,3.6208]
[1756611264589,0.486,4455.7,4455.6,3.9055]
[1756611264788,0.2879,4455.7,4455.6,3.9055]
[1756611265087,0.486,4455.7,4455.6,3.9055]
[1756611265778,0.486,4455.7,4455.6,3.6785]
[1756611265982,0.486,4455.7,4455.6,3.9055]
[1756611267277,0.486,4455.7,4455.6,3.2078]
[1756611267483,0.1981,4454.6,4454.5,0.4707]
[1756611267681,0.67219369,4454.6,4454.5,0.4707]
[1756611267886,0.67219369,4454.6,4454.5,0.6977]
[1756611270187,3.35189669,4454.6,4454.5,0.6977]
[1756611272491,3.35189669,4454.6,4454.5,0.413]
[1756611272694,3.35189669,4454.6,4454.5,0.227]
[1756611273090,3.35189669,4454.6,4454.3,0.227]
[1756611273295,0.486,4454.4,4454.3,0.227]
[1756611273495,0.67219369,4454.4,4454.3,0.227]
[1756611273696,0.67219369,4454.4,4454.3,0.5117]
[1756611274090,0.18619369,4454.4,4454.3,0.6977]
[1756611274993,0.18619369,4454.4,4454.3,4.9222]
[1756611275195,2.521103,4454.6,4454.5,0.3446]
[1756611275396,0.486,4455.4,4454.4,0.22449]
[1756611275697,0.486,4455.4,4454.5,0.22447]
[1756611275999,0.486,4455.4,4454.7,0.40401]
[1756611277301,0.1981,4455.4,4454.7,0.40401]
[1756611277496,0.4786,4455.3,4454.7,0.40401]
[1756611277703,3.158303,4455.3,4454.7,0.40401]
[1756611278604,2.880903,4455.3,4454.7,0.40401]
[1756611278798,2.679703,4455.3,4454.7,0.40401]
[1756611278998,2.679703,4455.3,4454.8,3.2078]
[1756611279400,0.2774,4455.1,4454.8,3.2078]
[1756611279600,0.2774,4455.0,4454.8,3.2078]
[1756611280201,2.679703,4454.9,4454.8,3.2078]
[1756611281003,2.957103,4454.9,4454.8,3.2078]
[1756611281601,2.679703,4454.9,4454.8,3.2078]
[1756611285600,3.158303,4454.9,4454.8,3.2078]
[1756611285801,3.158303,4454.9,4454.8,3.4348]
[1756611286206,2.957103,4454.9,4454.8,3.4348]
[1756611286600,3.158303,4454.9,4454.8,3.4348]
[1756611287200,3.34505191,4454.9,4454.8,3.4348]
[1756611294614,3.14385191,4454.9,4454.8,3.4348]
[1756611294814,2.86645191,4454.9,4454.8,3.4348]
[1756611295214,3.14385191,4454.9,4454.8,3.4348]
[1756611295409,3.34505191,4454.9,4454.8,3.4348]
[1756611295810,3.14385191,4454.9,4454.8,3.4348]
[1756611296017,2.86645191,4454.9,4454.8,3.4348]
[1756611296506,2.679703,4454.9,4454.8,3.4348]
[1756611296711,3.14410219,4454.9,4454.8,3.4348]
[1756611297416,2.957103,4454.9,4454.8,3.4348]
[1756611297617,2.86672033,4454.9,4454.8,3.4348]
[1756611298312,0.2774,4457.1,4454.8,7.65927]
[1756611298505,3.2078,4457.2,4456.2,3.2078]
[1756611298506,0.4786,4456.3,4456.2,3.2078]
[1756611298708,0.2774,4456.3,4456.2,3.4348]
[1756611301417,0.4786,4456.3,4456.2,3.4348]
[1756611301716,3.158303,4456.3,4456.2,3.4348]
[1756611302421,3.158303,4456.3,4456.2,3.2078]
[1756611302620,3.158303,4456.3,4456.2,3.4348]
[1756611302820,3.158303,4456.3,4456.2,3.83868]
[1756611304521,2.679703,4456.3,4456.2,3.83868]
[1756611308617,2.965803,4456.3,4456.2,3.83868]
[1756611309018,2.679703,4456.3,4456.2,3.83868]
[1756611309218,2.965803,4456.3,4456.2,3.83868]
[1756611309517,3.167403,4456.3,4456.2,3.83868]
[1756611310126,3.167403,4456.3,4456.2,3.2078]
[1756611310320,3.167403,4456.3,4456.2,3.4348]
[1756611311024,3.167403,4456.3,4456.2,3.2078]
[1756611311212,3.167403,4456.3,4456.2,3.4348]
[1756611315228,3.167403,4456.3,4456.2,0.227]
[1756611317925,0.2016,4455.7,4455.6,3.2078]
[1756611318131,0.4877,4455.7,4455.6,3.4348]
[1756611318328,0.4877,4455.7,4455.6,3.2078]
[1756611318525,0.4877,4455.7,4455.6,3.4348]
[1756611319533,0.4877,4455.7,4455.6,3.2078]
[1756611319732,0.4877,4455.7,4455.6,3.4348]
[1756611321431,0.2016,4455.7,4454.9,5.21852929]
[1756611321621,3.2078,4455.9,4454.9,3.2078]
[1756611321622,0.4877,4455.0,4454.9,3.2078]
[1756611321826,0.4877,4455.0,4454.9,3.4348]
[1756611325244,3.167403,4455.0,4454.9,3.4348]
[1756611325634,3.167403,4455.0,4454.9,3.2078]
[1756611325933,3.167403,4455.0,4454.9,3.4348]
[1756611326631,3.167403,4455.0,4454.9,3.2078]
[1756611326937,3.167403,4455.0,4454.9,3.4348]
[1756611333444,3.167403,4455.0,4454.9,3.2078]
[1756611333647,3.167403,4455.0,4454.9,3.4348]
[1756611334342,0.2016,4454.4,4454.3,3.2078]
[1756611334538,0.4877,4454.4,4454.3,3.2078]
[1756611334738,0.4877,4454.4,4454.3,3.4348]
[1756611338446,0.4877,4454.4,4454.3,3.2078]
[1756611338645,0.4877,4454.4,4454.3,3.4348]
[1756611339448,0.4877,4454.4,4454.3,3.2078]
[1756611339647,0.4877,4454.4,4454.3,3.4348]
[1756611339847,0.2861,4454.4,4454.3,3.83885]
[1756611340542,3.2078,4455.4,4454.3,3.83885]
[1756611340543,0.2841,4455.2,4454.3,7.6593]
[1756611340743,0.2841,4455.8,4454.8,3.2078]
[1756611340948,0.2841,4455.8,4454.9,0.227]
[1756611341148,0.50855,4455.8,4454.9,0.227]
[1756611342048,2.679703,4455.1,4454.9,0.63099]
[1756611342655,2.679703,4455.1,4455.0,0.22447]
[1756611343744,2.679703,4455.1,4454.9,0.63099]
[1756611345549,2.679703,4455.1,4454.9,4.63099]
[1756611346650,2.679703,4455.1,4454.9,3.44360343]
[1756611348445,2.867003,4455.1,4455.0,0.227]
[1756611349153,3.151103,4455.1,4455.0,0.227]
[1756611349453,2.963803,4455.1,4455.0,0.227]
[1756611351149,2.679703,4455.1,4455.0,0.227]
[1756611351349,2.963803,4455.1,4455.0,0.227]
[1756611351656,3.151103,4455.1,4455.0,0.227]
[1756611352757,3.151103,4455.1,4454.9,0.40399]
[1756611353054,0.4714,4455.0,4454.9,0.40399]
[1756611353254,0.4714,4455.0,4454.9,6.00199]
[1756611354149,0.2841,4455.0,4454.9,6.00199]
[1756611354357,2.679703,4455.1,4454.9,6.00199]
[1756611354657,2.963803,4455.1,4454.9,6.00199]
[1756611355050,2.963803,4455.1,4454.9,5.77499]
[1756611355251,2.679703,4455.1,4454.9,5.77499]
[1756611355452,0.2841,4455.0,4454.9,5.77499]
[1756611355750,0.2841,4455.0,4454.9,6.00199]
[1756611358159,2.679703,4455.1,4454.9,6.00199]
[1756611358360,2.963803,4455.1,4454.9,6.00199]
[1756611358861,0.2841,4455.0,4454.9,6.00199]
[1756611360363,2.963803,4455.0,4454.9,6.00199]
[1756611362561,2.963803,4455.0,4454.9,5.77499]
[1756611362762,2.963803,4455.0,4454.9,6.00199]
[1756611362963,3.151103,4455.0,4454.9,6.00199]
[1756611364257,3.151103,4455.0,4454.9,5.77499]
[1756611364461,2.679703,4455.0,4454.9,6.00199]
[1756611364965,0.4714,4455.8,4455.7,0.40392]
[1756611365163,0.4714,4455.8,4455.7,3.83872]
[1756611367863,3.151103,4455.8,4455.7,3.83872]
[1756611368169,0.2956,4456.2,4456.1,0.40389]
[1756611368369,0.2956,4456.2,4456.1,2.63791285]
[1756611368567,0.4862,4456.2,4456.1,0.63089]
[1756611369258,0.4862,4456.2,4456.1,2.63867293]
[1756611369462,0.4862,4456.2,4456.1,0.63089]
[1756611369974,0.4862,4456.2,4456.1,0.40389]
[1756611370171,0.4862,4456.2,4456.1,2.6391866]
[1756611370372,0.4862,4456.2,4456.1,0.63089]
[1756611370968,0.1906,4456.2,4455.8,5.371]
[1756611371164,0.4862,4455.9,4455.8,7.38082959]
[1756611371365,0.4862,4455.9,4455.8,5.598]
[1756611372668,4.4862,4455.9,4455.8,5.598]
[1756611373970,4.4862,4455.9,4455.8,0.227]
[1756611375274,2.870303,4455.8,4455.7,3.2078]
[1756611375571,3.165903,4455.8,4455.7,3.4348]
[1756611376369,3.165903,4455.8,4455.7,3.2078]
[1756611376570,0.2956,4455.7,4455.3,2.00982959]
[1756611376871,0.4862,4455.2,4455.1,35.5298]
[1756611377066,0.4862,4455.2,4455.1,3.2078]
[1756611377265,4.4862,4455.2,4455.1,3.4348]
[1756611383675,4.4862,4455.2,4455.1,3.7346]
[1756611384877,4.4862,4455.2,4455.1,3.9367]
[1756611385870,4.4862,4455.2,4455.1,3.4348]
[1756611389484,4.4862,4455.2,4455.1,3.9367]
[1756611390183,0.4862,4455.2,4455.1,3.9367]
[1756611390484,0.2956,4456.0,4455.2,0.2998]
[1756611390680,0.2956,4456.0,4455.3,0.4291]
[1756611390884,3.2078,4456.1,4455.4,0.2021]
[1756611391082,0.4862,4455.6,4455.5,0.7289]
[1756611392692,3.165903,4455.6,4455.5,0.7289]
[1756611401793,2.982903,4455.6,4455.5,0.7289]
[1756611402093,2.679703,4455.6,4455.5,4.7289]
[1756611402490,2.679703,4455.6,4455.5,6.73872959]
[1756611405201,2.679703,4455.6,4455.5,12.10972959]
[1756611405401,2.679703,4455.6,4455.5,10.0999]
[1756611407198,2.679703,4455.6,4455.5,12.11335354]
[1756611416704,2.982903,4455.6,4455.5,12.11335354]
[1756611418005,3.177303,4455.6,4455.5,12.11335354]
[1756611418194,2.679703,4455.6,4455.5,12.11335354]
[1756611419206,2.679703,4455.6,4455.5,8.11335354]
[1756611420607,2.982903,4455.6,4455.5,8.11335354]
[1756611421310,3.177303,4455.6,4455.5,8.11335354]
[1756611421903,2.874103,4455.6,4455.5,8.11335354]
[1756611422098,2.679703,4455.6,4455.5,8.11335354]
[1756611425206,2.982903,4455.6,4455.5,8.11335354]
[1756611425413,3.177303,4455.6,4455.5,6.0999]
[1756611427417,3.177303,4455.6,4455.5,0.7289]
[1756611428013,2.679703,4455.6,4455.5,0.7289]
[1756611429407,3.171103,4455.6,4455.5,0.5019]
[1756611429613,3.171103,4455.6,4455.5,0.7289]
[1756611430411,3.171103,4455.6,4455.5,0.5019]
[1756611430613,3.171103,4455.6,4455.5,0.227]
[1756611431010,3.171103,4455.6,4455.5,0.7086]
[1756611440014,3.2078,4457.4,4456.2,0.40388]
[1756611440221,0.4914,4456.7,4456.6,2.49747191]
[1756611440417,0.4914,4456.7,4456.6,3.9164]
[1756611440715,1.20945247,4459.5,4457.5,0.2869]
[1756611440921,0.195,4458.2,4458.1,3.4025]
[1756611441123,0.195,4458.2,4458.1,3.4425]
[1756611441708,0.195,4458.2,4458.1,3.2078]
[1756611441919,4.41931,4458.2,4457.3,3.2078]
[1756611442117,0.22433,4458.1,4457.4,0.227]
[1756611442319,0.069,4458.7,4457.4,0.227]
[1756611442517,3.2078,4458.8,4458.0,3.4025]
[1756611442717,0.22431,4458.7,4458.1,0.227]
[1756611443226,3.2078,4458.8,4458.1,0.227]
[1756611443428,0.22429001,4458.7,4458.1,0.227]
[1756611443725,3.2078,4458.8,4458.1,0.227]
[1756611444320,2.679703,4458.6,4458.1,0.227]
[1756611444510,2.679703,4458.6,4458.2,0.2869]
[1756611444716,2.679703,4458.6,4458.3,0.227]
[1756611446618,2.679703,4458.6,4458.4,0.2869]
[1756611446814,2.679703,4458.6,4458.5,0.1947]
[1756611447014,2.679703,4458.6,4458.5,0.4816]
[1756611448729,2.679703,4458.6,4458.5,3.6894]
[1756611452227,2.679703,4458.6,4458.5,3.2078]
[1756611452428,2.679703,4458.6,4458.5,3.4338]
[1756611453431,2.679703,4458.6,4458.5,3.9154]
[1756611454034,2.679703,4458.6,4458.5,3.6894]
[1756611454237,2.679703,4458.6,4458.5,3.9164]
[1756611454728,2.679703,4458.6,4458.5,3.2078]
[1756611454937,2.679703,4458.6,4458.5,3.4947]
[1756611455233,2.679703,4458.6,4458.5,3.4348]
[1756611456635,2.679703,4458.6,4458.5,3.7217]
[1756611457930,2.679703,4458.6,4458.5,3.9164]
[1756611459333,2.679703,4458.6,4458.5,3.2078]
[1756611459538,9.887503,4458.6,4458.5,0.227]
[1756611459839,2.679703,4458.6,4458.5,3.9196]
[1756611460239,2.679703,4458.6,4458.5,7.9196]
[1756611465242,0.279,4460.1,4458.6,0.2823]
[1756611465447,0.4686,4460.1,4460.0,3.6926]
[1756611465641,0.4686,4460.1,4460.0,3.9196]
[1756611468535,3.148303,4460.1,4460.0,3.9196]
[1756611469139,3.148303,4460.1,4460.0,3.4103]
[1756611469345,3.148303,4460.1,4460.0,3.9196]
[1756611469545,3.148303,4460.1,4460.0,3.6373]
[1756611469746,3.148303,4460.1,4460.0,3.4348]
[1756611470046,3.148303,4460.1,4460.0,3.6926]
[1756611470248,3.148303,4460.1,4460.0,3.9196]
[1756611470942,3.148303,4460.1,4460.0,3.2078]
[1756611471142,3.148303,4460.1,4460.0,3.9196]
[1756611479256,3.148303,4460.1,4460.0,3.2078]
[1756611479457,3.148303,4460.1,4460.0,3.4348]
[1756611479650,3.148303,4460.1,4460.0,3.9196]
[1756611480657,2.679703,4460.1,4460.0,3.9196]
[1756611482062,2.679703,4460.1,4460.0,4.32314]
[1756611482246,0.279,4461.4,4460.5,0.2025]
[1756611482453,0.279,4461.4,4460.1,0.40353]
[1756611482454,0.4686,4461.0,4460.9,3.6926]
[1756611482649,0.4686,4461.0,4460.9,3.9196]
[1756611483150,3.2078,4462.0,4461.0,0.2823]
[1756611483357,0.4686,4461.2,4461.1,0.7118]
[1756611484052,0.279,4461.9,4461.2,0.2823]
[1756611484257,0.4686,4461.5,4461.4,3.6926]
[1756611485464,32.293,4463.4,4461.4,3.6926]
[1756611485465,2.989703,4461.8,4461.7,0.2025]
[1756611485656,2.989703,4461.8,4461.7,0.7118]
[1756611486256,2.710703,4461.8,4461.7,0.7118]
[1756611486656,2.521103,4461.8,4461.7,0.7118]
[1756611488366,0.5081,4462.6,4462.5,0.1965]
[1756611488665,0.5081,4462.6,4462.5,3.9168]
[1756611489464,0.2027,4462.6,4462.5,3.9168]
[1756611489767,0.5081,4462.6,4462.5,3.9168]
[1756611490361,3.2078,4464.0,4462.6,0.2855]
[1756611490563,3.2078,4464.0,4462.4,0.1803518]
[1756611490564,0.5081,4463.1,4463.0,3.6898]
[1756611490759,0.5081,4463.1,4463.0,3.9168]
[1756611491766,3.2078,4464.5,4463.1,0.2855]
[1756611491767,0.3054,4464.4,4463.1,0.2855]
[1756611491963,0.5081,4463.6,4463.5,3.6898]
[1756611492159,0.5081,4463.6,4463.5,3.9168]
[1756611493064,0.2027,4463.6,4463.5,3.9168]
[1756611493265,0.5081,4463.6,4463.5,3.9168]
[1756611493855,0.5081,4463.6,4463.5,3.2078]
[1756611494061,0.5081,4463.6,4463.5,3.4348]
[1756611494567,0.5081,4463.6,4463.5,3.2078]
[1756611494866,0.2027,4463.6,4463.5,3.9168]
[1756611495260,0.5081,4463.6,4463.5,3.9168]
[1756611496161,0.2027,4463.6,4463.5,3.9168]
[1756611496356,3.2078,4464.5,4463.6,0.2855]
[1756611496671,0.5081,4463.8,4463.7,0.709]
[1756611497958,0.3054,4464.4,4463.8,0.2855]
[1756611498160,0.3054,4464.4,4464.3,0.1965]
[1756611498161,0.5081,4464.4,4464.3,0.1965]
[1756611498362,0.5081,4464.4,4464.3,0.227]
[1756611498757,0.5081,4464.4,4462.8,32.281]
[1756611498758,0.3054,4464.0,4463.5,3.4933]
[1756611498963,4.2078,4465.0,4463.1,0.2855]
[1756611498964,0.2027,4463.6,4463.1,0.2855]
[1756611499166,0.5081,4463.3,4463.2,0.709]
[1756611500369,3.2078,4464.5,4463.2,0.4235]
[1756611500569,0.2027,4463.6,4463.5,0.482]
[1756611500772,0.5081,4463.6,4463.5,0.709]
[1756611501469,0.2027,4463.6,4463.5,0.709]
[1756611502170,0.5081,4463.6,4463.5,0.709]
[1756611502364,0.5081,4464.3,4464.2,0.1965]
[1756611502671,0.5081,4464.3,4464.2,0.227]
[1756611506472,0.2027,4463.6,4463.5,0.482]
[1756611506677,0.2027,4463.6,4463.5,0.709]
[1756611506880,0.5081,4463.5,4463.4,3.2078]
[1756611507074,0.5081,4463.5,4462.9,3.2078]
[1756611507272,0.5081,4463.0,4462.9,3.6313]
[1756611507676,3.2078,4463.9,4463.0,0.2855]
[1756611507874,0.3054,4463.8,4463.0,0.2855]
[1756611508173,0.5081,4463.8,4463.7,0.482]
[1756611508374,0.5081,4463.8,4463.7,0.709]
[1756611508672,0.3054,4464.6,4463.8,0.2855]
[1756611508872,0.5081,4464.6,4464.5,0.1965]
[1756611509079,0.5081,4464.6,4464.5,0.71]
[1756611509875,0.2027,4464.6,4464.5,0.71]
[1756611510080,0.3054,4464.9,4464.5,0.71]
[1756611510278,0.2027,4464.9,4464.8,0.1965]
[1756611510478,0.5081,4464.9,4464.8,0.482]
[1756611515077,0.5081,4464.9,4464.6,0.2855]
[1756611515382,0.2027,4464.9,4464.8,0.482]
[1756611515880,0.5081,4464.9,4464.8,0.482]
[1756611519479,0.2016,4464.0,4463.4,3.2078]
[1756611519684,0.5024,4463.9,4463.8,0.504]
[1756611519986,0.5024,4463.9,4463.8,0.732]
[1756611521379,0.5024,4464.9,4464.8,0.504]
[1756611521579,0.5024,4464.9,4464.8,0.732]
[1756611521884,0.5024,4464.9,4464.8,0.4308]
[1756611522084,0.5024,4464.9,4464.8,0.732]
[1756611524181,1.0,4465.0,4464.8,0.4308]
[1756611524381,1.0,4465.0,4464.9,0.504]
[1756611524780,1.0,4465.0,4464.9,4.504]
[1756611524986,1.0,4465.0,4464.9,5.13107]
[1756611525786,1.0,4465.0,4464.9,4.504]
[1756611525983,1.0,4465.0,4464.9,0.504]
[1756611526188,1.0,4465.0,4464.9,0.732]
[1756611527078,1.0,4465.0,4464.9,0.504]
[1756611527282,1.0,4465.0,4464.9,1.1351]
[1756611527988,0.2016,4465.9,4465.8,0.504]
[1756611528183,0.2016,4465.9,4465.8,3.9398]
[1756611528486,0.3008,4466.2,4465.8,3.9398]
[1756611528487,0.3008,4466.2,4465.8,3.6386]
[1756611528678,0.5024,4466.2,4466.1,0.2028]
[1756611528886,0.5024,4466.2,4466.1,0.732]
[1756611529283,3.2078,4466.7,4466.1,0.4308]
[1756611529490,0.3008,4466.8,4466.5,3.7118]
[1756611529685,0.3008,4466.8,4466.5,3.9398]
[1756611530087,0.3008,4467.2,4466.5,3.9398]
[1756611530290,0.3008,4466.9,4466.5,3.9398]
[1756611530488,1.8024,4466.6,4466.5,3.9398]
[1756611530987,1.8024,4466.6,4466.5,3.4106]
[1756611531187,1.8024,4466.6,4466.5,0.228]
[1756611531388,1.8024,4466.6,4466.5,3.4358]
[1756611531584,1.8024,4466.6,4466.5,0.228]
[1756611531984,1.5016,4466.6,4466.5,3.9398]
[1756611532788,1.8024,4466.6,4466.5,3.4358]
[1756611533387,1.3,4466.6,4466.5,3.9398]
[1756611533990,1.5016,4466.6,4466.5,3.9398]
[1756611534185,1.8024,4466.6,4466.5,3.9398]
[1756611534691,1.8024,4466.6,4466.5,4.34275]
[1756611536093,1.5016,4466.6,4466.5,4.34275]
[1756611537596,1.3,4466.6,4466.5,4.34275]
[1756611537993,0.0787079,4466.6,4466.5,4.34275]
[1756611538201,0.5024,4468.3,4466.5,7.43169]
[1756611538396,0.5024,4467.8,4467.7,0.504]
[1756611538595,0.5024,4467.8,4467.7,0.228]
[1756611538900,0.5024,4467.8,4467.7,0.4308]
[1756611539794,0.5024,4467.8,4467.7,0.228]
[1756611540302,0.2016,4467.8,4467.2,0.70408]
[1756611540503,0.2016,4467.8,4467.4,0.3012]
[1756611541000,0.5024,4467.5,4467.4,0.90687]
[1756611541398,0.5024,4467.5,4467.4,1.13487]
[1756611541794,0.5024,4467.5,4467.4,0.90687]
[1756611542398,0.5024,4467.5,4467.4,3.815053]
[1756611542598,0.5024,4467.5,4467.4,3.587053]
[1756611542795,0.5024,4467.5,4467.4,3.815053]
[1756611543000,0.5024,4467.5,4467.4,3.412183]
[1756611543596,0.5024,4467.5,4467.4,3.815053]
[1756611544592,0.5024,4467.5,4467.4,2.882983]
[1756611544798,4.5024,4467.5,4467.4,2.908183]
[1756611545000,0.5024,4467.5,4467.4,2.680183]
[1756611545805,0.2016,4467.5,4467.4,3.184183]
[1756611546100,0.5024,4468.7,4468.6,0.2028]
[1756611546305,0.5024,4468.7,4468.6,0.4308]
[1756611546606,0.5024,4468.7,4468.6,0.228]
[1756611546802,0.5024,4468.7,4468.6,0.4308]
[1756611547003,0.5024,4468.7,4468.6,0.732]
[1756611547399,0.5024,4468.7,4468.6,0.228]
[1756611547906,0.5057,4468.7,4468.6,0.228]
[1756611548306,32.244,4471.0,4468.7,0.3056]
[1756611548307,0.3041,4469.3,4468.7,0.3056]
[1756611548503,0.4877,4469.3,4469.2,0.4918]
[1756611548703,0.4877,4469.3,4469.2,0.7208]
[1756611549010,32.244,4471.0,4469.2,0.7208]
[1756611549011,0.3041,4470.0,4469.3,0.3056]
[1756611549309,0.4877,4470.0,4469.2,0.229]
[1756611549609,0.4877,4469.0,4468.9,0.4918]
[1756611549804,0.4877,4469.0,4468.9,0.7208]
[1756611550016,0.4877,4469.0,4468.9,0.4152]
[1756611550308,0.4877,4469.0,4468.9,2.909183]
[1756611552007,0.4877,4469.0,4468.9,3.095383]
[1756611552711,0.4877,4469.0,4468.9,3.400983]
[1756611553505,0.4877,4469.0,4468.9,3.095383]
[1756611553707,4.4877,4469.0,4467.9,0.3056]
[1756611554005,0.1836,4467.7,4467.6,0.4152]
[1756611554215,0.4877,4467.7,4467.6,0.4918]
[1756611554406,0.4877,4467.7,4467.3,0.229]
[1756611554905,0.4877,4467.7,4466.7,3.2078]
[1756611555213,0.3041,4467.4,4466.8,0.5346]
[1756611555408,3.5119,4468.0,4467.4,0.3056]
[1756611555712,3.2078,4468.0,4467.9,0.4918]
[1756611555901,3.2078,4468.5,4468.0,0.3056]
[1756611556101,3.2078,4468.5,4468.4,0.4918]
[1756611556304,3.2078,4469.1,4468.5,0.3056]
[1756611556501,3.5119,4469.8,4469.0,0.4918]
[1756611556703,3.5119,4469.8,4469.1,0.229]
[1756611557304,0.1836,4469.2,4469.1,0.1862]
[1756611557516,0.3041,4469.5,4469.2,0.3056]
[1756611557708,0.4877,4469.7,4469.6,0.1862]
[1756611558010,0.4877,4469.7,4469.6,0.4918]
[1756611558210,0.4877,4469.7,4469.6,0.1862]
[1756611558410,0.4877,4469.7,4469.6,0.4918]
[1756611559413,0.4877,4469.7,4469.4,0.187]
[1756611559614,0.1836,4469.7,4469.4,0.187]
[1756611559912,0.4877,4469.5,4469.4,0.187]
[1756611560117,0.4877,4469.5,4469.1,0.3056]
[1756611560414,0.4877,4469.5,4469.4,2.680183]
[1756611562215,0.4877,4469.5,4469.4,3.171983]
[1756611562710,3.5119,4469.8,4469.5,0.3056]
[1756611562917,3.6955,4469.8,4469.7,0.4918]
[1756611563712,3.2078,4469.8,4469.7,0.4918]
[1756611564112,3.3914,4469.8,4469.7,0.4918]
[1756611564419,3.6955,4469.8,4469.7,0.4918]
[1756611564619,3.2078,4469.8,4469.7,0.4918]
[1756611565230,3.2078,4469.8,4469.7,3.171983]
[1756611565418,3.6955,4469.8,4469.7,3.171983]
[1756611565623,3.6955,4469.8,4469.7,2.680183]
[1756611565818,3.6955,4469.8,4468.3,0.3056]
[1756611565819,7.91923,4469.8,4468.3,0.3056]
[1756611566122,3.2078,4469.1,4468.4,0.3056]
[1756611566828,3.4118,4469.1,4469.0,0.4918]
[1756611567030,0.204,4469.0,4468.9,0.4918]
[1756611569020,0.204,4469.0,4468.9,3.171983]
[1756611572031,0.204,4469.0,4468.9,2.680183]
[1756611573534,0.204,4469.0,4468.9,2.985783]
[1756611573932,0.204,4469.0,4468.9,3.171983]
[1756611576426,0.204,4469.0,4468.9,2.985783]
[1756611576836,0.433,4469.0,4468.9,2.680183]
[1756611578934,0.433,4469.0,4468.9,2.964183]
[1756611579935,0.229,4469.0,4468.9,2.964183]
[1756611581042,0.77447255,4469.0,4468.9,2.964183]
[1756611581629,0.77447255,4469.0,4468.9,2.680183]
[1756611582036,0.77447255,4469.0,4468.9,3.154783]
[1756611582240,2.28510922,4469.1,4469.0,0.4746]
[1756611582538,2.51410922,4469.1,4469.0,0.4746]
[1756611583438,7.95839269,4469.1,4467.9,0.284]
[1756611583744,3.2078,4468.0,4467.9,0.4746]
[1756611584037,3.4378,4468.0,4467.9,0.4746]
[1756611584236,3.4378,4468.0,4467.5,0.1906]
[1756611584438,3.2078,4467.6,4467.5,0.4746]
[1756611584735,3.2078,4467.6,4466.0,2.01271864]
[1756611584736,3.4378,4467.6,4466.1,0.284]
[1756611584944,3.2078,4466.7,4466.6,0.4746]
[1756611585438,3.2078,4466.7,4466.2,0.1906]
[1756611585741,0.23,4466.6,4465.8,0.284]
[1756611585934,3.2078,4466.2,4466.1,0.4746]
[1756611586843,3.2078,4466.2,4466.1,0.284]
[1756611587044,3.2078,4466.2,4466.1,0.4746]
[1756611587443,3.4378,4466.2,4466.1,0.4746]
[1756611589538,3.4378,4466.2,4465.4,0.514]
[1756611589738,3.2078,4465.7,4465.6,0.284]
[1756611590043,3.2078,4465.7,4465.6,0.4746]
[1756611591543,3.2078,4465.7,4465.3,0.1906]
[1756611591747,0.23,4465.6,4465.4,0.284]
[1756611592045,0.23,4465.6,4464.9,0.4746]
[1756611592239,0.23,4465.6,4465.0,0.284]
[1756611592240,3.2078,4465.2,4465.0,0.284]
[1756611592441,0.23,4465.1,4465.0,0.284]
[1756611592838,0.23,4465.1,4463.8,3.2078]
[1756611592839,0.23,4465.1,4464.4,0.284]
[1756611593039,3.2078,4464.5,4464.4,0.4746]
[1756611594549,3.2078,4464.5,4464.4,3.154783]
[1756611595943,3.2078,4464.5,4464.4,2.964183]
[1756611596648,3.2078,4464.5,4464.4,2.680183]
[1756611597444,7.2078,4464.5,4464.4,2.680183]
[1756611597651,7.43179,4464.5,4463.6,0.4746]
[1756611597853,3.2078,4463.7,4463.6,0.4746]
[1756611598054,3.4378,4463.7,4463.6,0.4746]
[1756611601849,3.4378,4463.7,4462.8,0.23]
[1756611602049,3.2078,4463.2,4462.9,0.4746]
[1756611602249,3.4378,4463.2,4463.0,0.284]
[1756611602449,3.4378,4463.2,4462.2,32.475]
[1756611602650,3.4378,4463.2,4462.3,0.284]
[1756611603053,0.23,4463.1,4462.3,0.284]
[1756611603248,3.2078,4463.8,4463.7,0.1906]
[1756611603449,3.4378,4463.8,4463.7,0.4746]
[1756611603855,2.08491416,4463.8,4463.7,0.4746]
[1756611605152,1.85491416,4463.8,4463.7,0.4746]
[1756611605353,1.85491416,4463.8,4463.7,3.154783]
[1756611611058,1.85491416,4463.8,4463.7,7.154783]
[1756611611561,1.85491416,4463.8,4463.7,3.154783]
[1756611611759,1.85491416,4463.8,4463.7,3.384783]
[1756611613057,1.85491416,4463.8,4463.7,3.154783]
[1756611613257,1.85491416,4463.8,4463.7,3.383783]